bitfinex/quotes_ETHUSD_20250721
["timestamp","ask_amount","ask_price","bid_price","bid_amount"]
[1753128066714,2.68087469,3730.2,3729.9,5.0927]
[1753128067393,2.68089654,3730.1,3729.9,5.0927]
[1753128067891,0.03350487,3730.8,3729.9,5.0927]
[1753128068092,2.68080859,3730.3,3729.9,5.0927]
[1753128068421,2.68058831,3730.6,3729.9,5.0927]
[1753128068624,0.03350487,3730.8,3729.9,5.0927]
[1753128068929,0.03350487,3730.8,3729.2,5.68248409]
[1753128068930,2.68225953,3728.2,3727.2,0.7729]
[1753128069428,3.14945953,3728.2,3727.2,0.7729]
[1753128069634,2.71578777,3728.2,3727.2,0.7729]
[1753128070731,2.68225452,3728.3,3727.5,0.2985]
[1753128070933,2.68213328,3728.4,3727.6,0.55]
[1753128071236,2.68213328,3728.4,3727.3,2.68289997]
[1753128071237,8.22837547,3729.3,3728.2,0.7524]
[1753128071410,2.68161218,3729.1,3728.3,0.55]
[1753128071594,2.68175601,3728.9,3728.3,0.71209]
[1753128071794,0.1336,3729.0,3728.3,0.84569]
[1753128072028,2.68177331,3728.9,3728.3,0.84569]
[1753128072328,2.68183706,3728.8,3728.3,0.84569]
[1753128072994,0.16712105,3729.0,3728.3,0.84569]
[1753128073299,3.0,3729.5,3728.1,0.02]
[1753128073300,2.68225196,3728.3,3728.1,0.02]
[1753128073497,0.1336,3728.4,3728.1,0.02]
[1753128073830,2.8157222,3728.4,3728.1,0.02]
[1753128074324,0.1336,3728.4,3728.1,0.02]
[1753128074911,8.22837547,3728.7,3728.1,0.02]
[1753128075091,2.68216893,3728.4,3727.5,0.2985]
[1753128075297,8.22837547,3727.6,3726.1,0.02]
[1753128075653,0.03353454,3727.5,3726.1,4.6755]
[1753128075797,2.68297918,3727.2,3726.2,3.0]
[1753128076136,2.68297918,3727.2,3726.1,4.6755]
[1753128076298,2.68297918,3727.2,3726.2,0.55]
[1753128076821,2.68297918,3727.2,3726.5,4.361]
[1753128078316,2.71651641,3727.2,3726.5,4.361]
[1753128078533,3.47439921,3726.2,3726.1,0.02]
[1753128078741,7.86294545,3726.2,3726.1,0.02]
[1753128079031,8.22837547,3725.4,3725.1,0.02]
[1753128079400,2.71792061,3725.3,3725.1,0.02]
[1753128079597,2.68441962,3725.2,3725.1,0.02]
[1753128080019,3.55732765,3725.2,3725.1,0.02]
[1753128080420,0.23918749,3725.3,3725.1,0.02]
[1753128080736,8.22837547,3726.0,3725.1,0.8446]
[1753128081052,2.71753598,3725.9,3725.1,0.8446]
[1753128081191,0.03354894,3725.9,3725.2,2.68436737]
[1753128081523,0.23264972,3725.9,3725.1,3.52907498]
[1753128081723,0.03354894,3725.9,3725.1,3.52907498]
[1753128081923,2.68405538,3725.8,3725.1,0.8446]
[1753128082098,0.03355074,3725.7,3725.1,0.8446]
[1753128082301,0.779,3724.2,3724.1,1e-08]
[1753128082614,9.21009883,3724.2,3724.1,1e-08]
[1753128082812,11.89523926,3724.2,3724.1,1e-08]
[1753128083026,13.08476319,3724.2,3724.1,1e-08]
[1753128083833,3.66686379,3724.2,3724.1,1e-08]
[1753128084035,1.01528761,3724.2,3724.1,1e-08]
[1753128084237,2.92142804,3724.2,3724.1,1e-08]
[1753128084741,0.03356425,3724.2,3724.1,1e-08]
[1753128085042,2.71870468,3724.2,3724.1,1e-08]
[1753128086206,2.91494766,3724.2,3724.1,1e-08]
[1753128087242,3.91524419,3724.2,3724.1,1e-08]
[1753128087630,2.68528464,3724.0,3719.7,0.8273]
[1753128087815,3.46365538,3722.1,3720.7,0.8233]
[1753128088146,2.85383857,3722.1,3721.2,2.68726464]
[1753128088436,0.1336,3722.1,3720.7,0.8233]
[1753128088639,2.82025538,3722.1,3721.1,0.1536]
[1753128088845,0.1336,3722.1,3721.1,0.02]
[1753128089006,0.03358409,3722.0,3721.1,0.02]
[1753128089407,2.68657859,3722.3,3721.5,2.68707392]
[1753128089615,2.72016955,3722.2,3721.5,2.68707392]
[1753128089817,0.7779,3721.5,3720.1,0.02]
[1753128090105,1.07906358,3721.4,3720.1,0.02]
[1753128090546,0.0335895,3721.4,3720.1,3.02]
[1753128090716,0.03358589,3721.8,3720.7,2.68766629]
[1753128090915,0.03358229,3722.2,3720.7,0.55]
[1753128091116,0.03358229,3722.2,3721.0,0.55]
[1753128091316,0.03358229,3722.2,3721.0,3.55]
[1753128091541,2.68671941,3722.1,3721.2,0.55]
[1753128091746,0.03358409,3722.0,3721.5,2.68708237]
[1753128091930,2.68636668,3722.5,3721.6,2.68698821]
[1753128092137,0.03358048,3722.4,3721.6,0.53742183]
[1753128092308,0.8173,3722.4,3719.1,0.02]
[1753128092508,9.67684081,3721.8,3719.2,2.68873973]
[1753128092756,0.0335868,3721.7,3720.0,0.7968]
[1753128092905,0.0335877,3721.6,3720.5,2.68781077]
[1753128093113,2.68715112,3721.5,3720.2,3.0]
[1753128093348,2.68715112,3721.5,3720.0,0.7968]
[1753128093349,2.68738634,3721.1,3720.4,3.0]
[1753128093649,0.03359312,3721.0,3720.3,3.38168]
[1753128093940,0.0335895,3721.4,3720.3,8.03868]
[1753128094141,0.0335895,3721.4,3720.8,2.68758611]
[1753128094336,0.0335895,3721.4,3720.5,2.68775418]
[1753128094530,0.0335895,3721.4,3720.3,8.03868]
[1753128094826,0.0335895,3721.4,3720.3,7.657]
[1753128095027,2.68757805,3720.9,3720.3,7.657]
[1753128095239,2.68766629,3720.7,3720.0,0.0267]
[1753128095442,0.7915,3720.9,3720.0,0.0267]
[1753128095443,0.03359673,3720.6,3720.0,0.0267]
[1753128095603,2.68781907,3720.5,3720.0,0.0267]
[1753128095810,0.03359853,3720.4,3720.0,0.0267]
[1753128096344,2.68802752,3720.2,3720.0,0.0267]
[1753128096847,2.72162786,3720.2,3720.0,0.0267]
[1753128097208,3.26258019,3720.2,3720.0,0.0267]
[1753128097518,0.03360034,3720.2,3720.0,0.0267]
[1753128097718,2.68802752,3720.2,3720.0,0.0267]
[1753128097947,0.03360034,3720.2,3720.0,0.0267]
[1753128098122,2.68802752,3720.2,3720.0,0.0267]
[1753128098320,0.03359673,3720.6,3720.0,0.0267]
[1753128098707,2.68796813,3720.3,3720.0,0.0267]
[1753128098910,0.03360034,3720.2,3720.0,0.0267]
[1753128099138,3.47908734,3720.9,3720.0,0.0267]
[1753128099139,0.03359582,3720.7,3720.0,0.0267]
[1753128099364,0.1344,3720.3,3720.2,2.68797184]
[1753128099668,3.47159168,3721.5,3720.2,0.54227733]
[1753128099961,12.36374925,3721.8,3720.6,2.68773853]
[1753128099962,0.1336,3720.7,3720.6,2.68773853]
[1753128100462,0.8158,3722.6,3721.0,4.3587]
[1753128100627,0.1336,3721.8,3721.7,2.68694413]
[1753128100835,2.71951275,3723.1,3722.3,2.68646829]
[1753128101032,2.7060837,3722.9,3721.7,0.26869441]
[1753128101247,0.1336,3722.1,3722.0,2.68672756]
[1753128101667,0.03357687,3722.8,3722.0,3.23672756]
[1753128101870,0.1336,3722.7,3722.2,0.55]
[1753128102026,0.1336,3722.7,3722.3,0.53306]
[1753128102556,0.1336,3722.7,3722.4,2.68643367]
[1753128102757,0.1336,3722.7,3722.3,0.53306]
[1753128102953,0.05357597,3722.9,3721.8,0.8264]
[1753128103174,0.1336,3722.4,3722.0,3.0]
[1753128103330,0.1336,3722.4,3722.1,0.55]
[1753128103535,0.02,3722.9,3722.4,3.23643885]
[1753128103536,0.002,3722.5,3722.4,3.23643885]
[1753128103993,0.002,3722.5,3722.4,3.37003885]
[1753128104336,0.002,3722.5,3722.4,0.6836]
[1753128104540,0.002,3722.5,3722.1,0.55]
[1753128104843,0.002,3722.5,3722.3,0.55]
[1753128105044,0.002,3722.5,3722.4,3.23643885]
[1753128105244,0.002,3722.5,3722.4,4.01733814]
[1753128105635,0.002,3722.5,3722.4,1.33089929]
[1753128105836,0.002,3722.5,3722.4,0.6836]
[1753128106037,0.002,3722.5,3722.4,0.55]
[1753128106237,0.002,3722.5,3722.4,3.23643885]
[1753128106437,0.002,3722.5,3722.4,3.37003885]
[1753128108561,0.002,3722.5,3722.4,6.37003885]
[1753128108760,0.002,3722.5,3722.4,7.27570091]
[1753128109474,0.002,3722.5,3722.4,11.89670091]
[1753128109873,0.002,3722.5,3722.4,12.67900091]
[1753128110677,0.002,3722.5,3722.4,5.37156206]
[1753128110878,0.002,3722.5,3722.4,9.0799]
[1753128111565,0.002,3722.5,3722.4,8.9463]
[1753128111763,0.002,3722.5,3722.4,4.3323]
[1753128111970,0.002,3722.5,3722.4,8.9423]
[1753128112553,0.002,3722.5,3722.4,5.9423]
[1753128113177,0.002,3722.5,3722.4,1.93989]
[1753128113367,0.002,3722.5,3722.4,6.67649]
[1753128113675,0.002,3722.5,3722.4,9.36292885]
[1753128113879,0.002,3722.5,3722.4,6.67649]
[1753128114180,0.002,3722.5,3722.4,6.0699]
[1753128114746,0.002,3722.5,3721.3,0.7793]
[1753128115048,0.002,3722.5,3721.4,4.6]
[1753128115049,0.1336,3721.9,3721.4,4.6]
[1753128115245,0.1336,3721.9,3721.6,3.0]
[1753128115479,0.002,3722.5,3721.8,0.9176]
[1753128115675,0.002,3722.5,3722.4,0.55]
[1753128115879,0.002,3722.5,3722.4,5.155]
[1753128117362,0.002,3722.5,3722.4,7.84143885]
[1753128117980,0.002,3722.5,3722.4,18.05793885]
[1753128118287,0.002,3722.5,3722.4,20.14575032]
[1753128120255,0.002,3722.5,3722.4,17.44931147]
[1753128120463,0.002,3722.5,3722.4,15.3615]
[1753128120759,0.002,3722.5,3722.3,0.1336]
[1753128120760,2.68643885,3722.4,3722.3,0.1336]
[1753128120952,2.68661691,3722.2,3722.0,0.1336]
[1753128121291,2.68709518,3721.5,3721.3,6.443]
[1753128121456,2.82061969,3721.6,3721.4,4.584]
[1753128121654,0.1336,3721.6,3721.0,0.1336]
[1753128121962,0.1336,3721.6,3720.1,0.021]
[1753128121963,0.1336,3721.3,3720.6,0.1336]
[1753128122167,2.68731439,3721.2,3720.7,4.587]
[1753128122387,0.1336,3721.3,3720.9,2.68746502]
[1753128122775,0.1336,3721.3,3720.7,5.32783456]
[1753128123087,0.03358589,3721.8,3721.7,3.23694413]
[1753128123088,0.1336,3721.8,3721.7,3.23694413]
[1753128123287,0.002,3722.5,3722.0,0.55]
[1753128123491,0.002,3722.5,3722.1,4.584]
[1753128123785,0.002,3722.5,3722.2,0.55]
[1753128123991,0.002,3722.5,3722.2,0.6836]
[1753128124556,0.002,3722.5,3722.4,3.23643885]
[1753128124754,0.002,3722.5,3722.4,3.37003885]
[1753128125659,0.002,3722.5,3722.4,10.94703885]
[1753128126898,1e-08,3722.5,3722.4,11.73743885]
[1753128127607,1e-08,3722.5,3722.4,7.16043885]
[1753128127790,1e-08,3722.5,3722.4,12.79368311]
[1753128128299,1e-08,3722.5,3722.4,13.09218311]
[1753128129296,1e-08,3722.5,3722.4,19.53318311]
[1753128130198,1e-08,3722.5,3722.4,19.23468311]
[1753128130373,1e-08,3723.3,3723.2,7.05056162]
[1753128130581,1e-08,3723.3,3723.2,11.60956162]
[1753128130786,1e-08,3723.3,3723.2,11.90806162]
[1753128131191,1e-08,3723.3,3723.2,11.60956162]
[1753128131389,1e-08,3723.3,3723.2,17.31535962]
[1753128131589,1e-08,3723.3,3723.2,15.98579268]
[1753128132104,1e-08,3723.9,3723.8,7.05012886]
[1753128132397,0.002,3724.0,3723.9,6.23535674]
[1753128132398,1e-08,3724.0,3723.9,6.23535674]
[1753128132603,1e-08,3724.0,3723.9,10.24335674]
[1753128132975,1e-08,3724.0,3723.9,12.08624015]
[1753128133299,1e-08,3724.0,3723.9,13.19944015]
[1753128133671,1e-08,3724.0,3723.9,23.83966815]
[1753128133870,0.02,3724.9,3724.8,4.0494079]
[1753128134074,0.02,3724.9,3724.8,18.0584079]
[1753128134270,0.4666,3725.8,3725.7,3.23405937]
[1753128134594,0.4666,3726.2,3725.8,3.23398733]
[1753128134797,0.7996,3726.5,3725.8,3.23398733]
[1753128134798,0.4666,3726.6,3725.8,6.23398733]
[1753128135905,0.02,3726.9,3725.8,6.23398733]
[1753128136102,0.02,3726.9,3726.8,2.68326714]
[1753128136310,0.02,3726.9,3726.8,5.109]
[1753128136483,0.4866,3726.9,3726.8,5.109]
[1753128136677,0.4866,3726.9,3726.8,0.55]
[1753128137128,0.4866,3726.9,3726.8,5.107]
[1753128137487,3.16979514,3726.9,3726.8,5.106]
[1753128137824,0.4866,3726.9,3726.8,5.106]
[1753128138024,0.02,3726.9,3726.8,5.106]
[1753128138690,0.4726,3726.9,3726.8,5.106]
[1753128139322,0.4726,3726.9,3726.8,0.55]
[1753128139589,3.15579514,3726.9,3726.8,0.55]
[1753128139794,1.05648832,3726.9,3726.8,5.095]
[1753128140087,0.4726,3726.9,3726.8,5.095]
[1753128140291,0.02,3726.9,3726.8,5.095]
[1753128140730,0.02,3726.9,3726.8,5.2286]
[1753128141234,0.02,3726.9,3726.8,10.91186714]
[1753128141439,0.02,3726.9,3726.8,6.66536714]
[1753128141634,0.02,3726.9,3726.8,18.65803348]
[1753128142113,0.02,3726.9,3726.8,18.65503348]
[1753128143629,0.02,3727.9,3727.8,2.68254734]
[1753128143929,0.02,3727.9,3727.8,10.76554734]
[1753128144228,1e-08,3727.9,3727.8,10.89914734]
[1753128144529,1e-08,3727.9,3727.8,18.56980347]
[1753128144715,1e-08,3727.9,3727.8,13.46772547]
[1753128145491,1e-08,3727.9,3727.8,13.16922547]
[1753128145694,0.4526,3729.5,3728.8,3.23182793]
[1753128146007,0.4526,3729.5,3728.8,10.75382793]
[1753128146331,0.4526,3729.5,3728.8,12.87470247]
[1753128147835,0.4726,3729.9,3728.8,12.87470247]
[1753128148935,0.02,3729.9,3729.8,3.2311089]
[1753128149138,0.02,3729.9,3729.8,7.7401089]
[1753128149441,0.02,3729.9,3729.8,10.8737089]
[1753128149640,0.02,3729.9,3729.8,12.30511954]
[1753128150449,1e-08,3729.9,3729.8,12.60361954]
[1753128151439,1e-08,3729.9,3729.8,13.39721954]
[1753128152317,1e-08,3729.9,3729.8,8.58971954]
[1753128152653,1e-08,3729.9,3729.8,7.6336]
[1753128152864,1e-08,3729.9,3729.0,2.68167276]
[1753128152865,2.68120168,3729.7,3729.0,2.68167276]
[1753128153061,0.4526,3729.6,3729.2,3.0]
[1753128153270,1e-08,3729.9,3729.4,3.0]
[1753128153558,0.4526,3729.5,3729.0,3.0]
[1753128153864,0.4526,3729.4,3729.3,3.0]
[1753128154008,0.4526,3729.8,3729.3,7.495]
[1753128154212,1e-08,3729.9,3729.3,7.495]
[1753128154408,1e-08,3729.9,3729.7,0.55]
[1753128154614,1e-08,3729.9,3729.8,5.045]
[1753128155158,0.45260001,3729.9,3729.8,5.045]
[1753128156607,1e-08,3729.9,3729.8,5.81762026]
[1753128156815,1e-08,3729.9,3729.8,8.49872916]
[1753128157027,1e-08,3729.9,3729.8,11.49872916]
[1753128157651,1e-08,3730.4,3730.3,3.23074953]
[1753128157855,1e-08,3730.4,3730.3,18.52420802]
[1753128158066,0.02,3730.9,3730.8,3.23039026]
[1753128158353,0.02,3730.9,3730.8,10.71339026]
[1753128158557,1e-08,3730.9,3730.8,11.84149026]
[1753128159929,1e-08,3730.9,3730.8,3.0]
[1753128160163,0.45260001,3730.9,3730.8,4.48]
[1753128160342,0.7858,3730.5,3729.5,6.431]
[1753128160557,0.7858,3730.5,3729.6,5.1321]
[1753128160558,0.4526,3730.4,3729.6,5.1321]
[1753128160874,2.68081918,3730.3,3729.6,5.1321]
[1753128161159,0.4526,3730.4,3729.8,3.0]
[1753128161326,0.4526,3730.4,3730.0,3.0]
[1753128161523,0.4526,3730.4,3730.2,0.55]
[1753128161730,0.7858,3730.5,3730.4,0.55]
[1753128161955,0.7858,3730.5,3730.3,4.486]
[1753128162173,2.68067767,3730.4,3730.3,4.486]
[1753128162465,3.13327767,3730.4,3730.3,5.036]
[1753128162668,0.4526,3730.4,3730.3,5.036]
[1753128162844,0.4526,3730.8,3730.3,5.6732]
[1753128163039,0.83260001,3730.9,3730.6,0.55]
[1753128163234,0.83260001,3730.9,3730.8,0.55]
[1753128163432,0.83260001,3730.9,3730.8,5.03]
[1753128163433,3.51291843,3730.9,3730.8,5.03]
[1753128163637,1e-08,3730.9,3730.8,5.03]
[1753128163825,1e-08,3730.9,3730.8,5.54636]
[1753128164270,0.45260001,3730.9,3730.8,5.03]
[1753128164637,1e-08,3730.9,3730.8,5.03]
[1753128164831,0.45260001,3730.9,3730.8,5.03]
[1753128165462,1e-08,3730.9,3730.8,7.71039026]
[1753128165692,0.83120001,3730.9,3728.1,0.02]
[1753128165972,0.83120001,3730.9,3728.5,0.1336]
[1753128165973,2.68197178,3728.6,3728.5,0.1336]
[1753128166266,2.68225953,3728.2,3728.1,0.02]
[1753128166439,3.54698777,3728.2,3728.1,0.02]
[1753128166844,3.99958777,3728.2,3728.1,1e-08]
[1753128167065,3.51417918,3727.2,3727.1,0.02]
[1753128167267,2.68369921,3726.2,3724.8,0.429]
[1753128167597,0.8312,3726.2,3724.9,4.509]
[1753128167746,0.8312,3726.2,3725.5,2.68418997]
[1753128167948,0.8312,3726.2,3725.5,4.509]
[1753128168146,3.98539921,3726.2,3725.5,4.509]
[1753128168758,1.3017,3726.2,3725.5,4.509]
[1753128168962,0.03354083,3726.8,3725.5,4.509]
[1753128168963,0.50404083,3726.8,3725.6,0.55]
[1753128169185,3.03354173,3726.7,3725.5,4.509]
[1753128169349,0.03354173,3726.7,3725.5,4.509]
[1753128169751,0.03354173,3726.7,3726.0,0.55]
[1753128170080,1.3017,3726.8,3725.5,4.509]
[1753128170280,1.3017,3726.8,3726.0,0.55]
[1753128170582,0.86474083,3726.8,3726.3,2.6835822]
[1753128170745,0.8312,3726.8,3726.2,0.55]
[1753128171079,0.4705,3727.2,3726.6,2.68339973]
[1753128171648,3.43985543,3727.4,3726.8,0.55]
[1753128171649,0.757,3727.4,3726.8,0.55]
[1753128172382,0.50403633,3727.3,3726.7,4.501]
[1753128172563,3.18694504,3727.3,3726.7,4.501]
[1753128172885,3.18695527,3727.3,3726.7,4.501]
[1753128173189,0.50403633,3727.3,3726.7,4.501]
[1753128173379,2.6830057,3727.2,3726.7,4.501]
[1753128173775,0.4705,3727.1,3726.7,4.501]
[1753128173949,0.03353633,3727.3,3726.7,4.501]
[1753128174149,0.757,3727.4,3726.8,0.55]
[1753128174875,0.50403633,3727.3,3726.7,4.501]
[1753128175705,2.68300503,3727.2,3726.7,4.501]
[1753128175896,0.03353813,3727.1,3726.7,4.501]
[1753128176098,2.68326714,3726.8,3726.7,4.501]
[1753128176403,2.68326714,3726.8,3726.1,0.02]
[1753128176404,0.4705,3726.8,3726.3,4.487]
[1753128176598,0.50404173,3726.7,3726.3,4.487]
[1753128176760,0.4705,3726.6,3726.3,4.487]
[1753128176961,0.1336,3726.5,3726.3,4.487]
[1753128177396,0.6041,3726.5,3726.3,4.487]
[1753128178099,0.1336,3726.5,3726.4,2.68355517]
[1753128178279,0.1336,3726.8,3726.4,0.55]
[1753128179573,0.03353633,3727.3,3726.5,0.55]
[1753128179789,0.1336,3727.0,3726.6,2.68337028]
[1753128180197,0.4705,3726.9,3726.4,4.477]
[1753128180470,2.68348316,3726.5,3726.4,4.477]
[1753128180695,2.68348316,3726.5,3726.1,0.02]
[1753128180696,2.68369921,3726.2,3726.1,0.02]
[1753128181073,4.13683254,3726.2,3726.1,0.02]
[1753128181277,6.82053175,3726.2,3726.1,0.02]
[1753128181673,0.792,3726.4,3726.1,0.02]
[1753128181871,0.85053993,3726.9,3726.1,0.02]
[1753128182096,0.1336,3726.5,3726.2,4.482]
[1753128182828,0.817,3726.9,3726.3,0.55]
[1753128182993,0.9506,3726.9,3726.3,0.6836]
[1753128183170,0.9506,3726.9,3726.3,3.36720772]
[1753128183572,0.9506,3726.9,3726.5,0.55]
[1753128183781,0.1336,3726.9,3726.6,2.68335206]
[1753128183969,0.1336,3726.9,3726.7,4.48]
[1753128184569,0.1336,3726.9,3726.8,2.68326714]
[1753128184775,0.7741,3727.4,3726.9,0.55]
[1753128185003,0.9077,3727.4,3726.9,0.55]
[1753128185204,0.9077,3727.4,3727.3,2.68290719]
[1753128185406,0.771,3727.9,3727.5,2.68270304]
[1753128185609,0.771,3727.9,3727.4,3.23281361]
[1753128185610,0.1336,3727.7,3727.4,3.23281361]
[1753128185810,0.1336,3727.7,3727.4,0.55]
[1753128185978,0.1336,3727.7,3727.4,3.23282105]
[1753128186178,0.1336,3727.7,3727.4,0.55]
[1753128186804,0.1336,3727.7,3727.5,2.68275311]
[1753128186970,0.1336,3727.7,3727.4,3.23281358]
[1753128187170,0.1336,3727.7,3727.4,0.55]
[1753128187484,0.6041,3727.7,3727.3,4.476]
[1753128187686,0.1336,3727.7,3727.3,4.476]
[1753128187886,0.1336,3727.7,3727.3,7.15889324]
[1753128188827,0.1336,3727.7,3727.4,0.55]
[1753128190095,0.1356,3727.7,3727.4,3.23281061]
[1753128190290,0.1356,3727.7,3727.4,0.55]
[1753128190891,0.1356,3727.7,3727.4,3.23283315]
[1753128191219,0.1356,3727.7,3727.4,0.55]
[1753128191711,0.1356,3727.7,3727.4,3.23283173]
[1753128192018,0.1356,3727.7,3727.5,4.457]
[1753128192198,0.1356,3727.7,3727.6,4.457]
[1753128193017,0.1356,3727.7,3727.2,0.55]
[1753128193322,0.1356,3727.7,3727.4,0.55]
[1753128193534,0.1356,3727.7,3727.6,2.68269127]
[1753128193990,0.1356,3727.7,3727.4,0.55]
[1753128194405,0.1356,3727.7,3727.4,3.23280948]
[1753128194610,0.1356,3727.7,3727.4,0.55]
[1753128194808,0.1356,3727.7,3727.4,3.23282442]
[1753128195007,0.1356,3727.7,3727.5,2.68274517]
[1753128195330,0.002,3727.7,3727.6,2.68269127]
[1753128196398,0.002,3727.7,3727.6,3.66169127]
[1753128196619,0.002,3727.7,3727.6,8.09969127]
[1753128196786,0.002,3727.7,3727.6,4.988]
[1753128196997,0.002,3727.7,3727.6,4.438]
[1753128197214,0.002,3727.7,3727.4,0.1336]
[1753128197215,0.002,3727.7,3727.5,0.55]
[1753128197427,0.002,3727.7,3727.6,4.438]
[1753128202722,2.68297918,3727.2,3727.1,0.001]
[1753128202904,15.21119863,3727.2,3727.1,0.001]
[1753128203118,15.1776614,3727.2,3727.1,0.001]
[1753128203836,3.46699921,3726.2,3725.9,0.001]
[1753128204035,5.68384326,3726.0,3725.9,1e-08]
[1753128204332,5.68384326,3726.0,3725.1,0.02]
[1753128204333,2.68441962,3725.2,3725.1,0.02]
[1753128204561,11.75695708,3725.2,3725.1,0.02]
[1753128204706,11.75695708,3725.2,3724.4,0.001]
[1753128204707,5.68463582,3724.9,3724.4,0.001]
[1753128204910,5.71819376,3724.9,3724.4,0.001]
[1753128205143,6.16379376,3724.9,3724.4,0.001]
[1753128205338,6.16379376,3724.9,3724.8,1e-08]
[1753128205541,2.68492415,3724.5,3724.4,0.001]
[1753128205714,2.7184857,3724.5,3724.4,0.001]
[1753128205908,3.797968,3724.5,3724.4,0.001]
[1753128206112,0.03356065,3724.6,3724.4,0.001]
[1753128206312,2.68492415,3724.5,3724.4,0.001]
[1753128206634,0.8287,3724.8,3724.4,0.001]
[1753128206835,0.788,3725.3,3724.5,3.14329699]
[1753128207152,0.788,3725.3,3724.6,0.55]
[1753128207309,2.68449169,3725.1,3724.4,4.423]
[1753128207514,2.68478535,3724.7,3724.4,4.423]
[1753128208043,2.68471657,3724.8,3724.4,4.423]
[1753128208270,0.03340384,3724.7,3724.4,4.423]
[1753128208424,0.03355704,3725.0,3724.4,4.423]
[1753128208625,2.68491848,3724.6,3724.4,4.423]
[1753128208840,2.71816477,3725.0,3724.4,4.423]
[1753128209143,0.03355704,3725.0,3724.4,4.423]
[1753128209348,0.98248436,3725.1,3724.5,2.68492415]
[1753128209510,0.98248436,3725.1,3724.6,2.68484045]
[1753128209511,0.03355614,3725.1,3724.6,2.68484045]
[1753128209710,0.03355614,3725.1,3724.4,4.423]
[1753128209711,0.03355614,3725.1,3724.7,2.68471341]
[1753128209910,0.03355614,3725.1,3724.6,2.68483085]
[1753128210112,0.03355614,3725.1,3724.6,2.6848216]
[1753128210307,0.82155434,3725.3,3724.7,0.55]
[1753128210537,0.82155434,3725.3,3724.7,1.0084]
[1753128210946,0.82155434,3725.3,3724.9,2.68463226]
[1753128211252,2.684009,3725.8,3724.9,4.8764]
[1753128211415,3.03355074,3725.7,3725.0,2.68456375]
[1753128211608,3.03355074,3725.7,3725.1,2.68448557]
[1753128211813,4.77485078,3725.7,3725.1,2.68448557]
[1753128212352,4.77485078,3725.7,3725.2,2.68434923]
[1753128212353,0.03355074,3725.7,3725.2,2.68434923]
[1753128212517,2.71755547,3725.8,3725.1,2.68447532]
[1753128212718,0.1336,3725.6,3725.2,2.68441707]
[1753128213157,0.1336,3725.6,3725.0,0.6836]
[1753128213369,0.1336,3725.6,3725.1,2.68443273]
[1753128213655,0.1336,3725.6,3725.2,2.68441084]
[1753128213816,0.1336,3725.6,3725.1,2.68448275]
[1753128214155,0.1336,3725.6,3725.2,2.68438903]
[1753128214459,0.1336,3725.6,3725.5,3.23420346]
[1753128214753,0.1336,3726.0,3725.9,2.68385077]
[1753128215041,0.1336,3726.0,3725.9,4.407]
[1753128215965,0.7858,3726.7,3725.9,5.4154]
[1753128216170,0.1336,3726.7,3726.3,0.55]
[1753128216365,0.1336,3726.7,3726.4,4.404]
[1753128217147,0.1336,3726.7,3726.6,2.68341115]
[1753128217370,0.02,3726.9,3726.8,2.68326714]
[1753128217573,0.02,3726.9,3726.8,7.63526714]
[1753128217782,0.02,3726.9,3726.8,7.76886714]
[1753128218074,0.02,3726.9,3726.8,8.22726714]
[1753128218380,2.70320211,3726.9,3726.8,4.402]
[1753128218578,3.28240211,3726.9,3726.8,4.402]
[1753128218757,3.31594204,3726.9,3726.8,4.402]
[1753128218954,0.1536,3726.9,3726.8,4.402]
[1753128219645,2.83679514,3726.9,3726.8,4.402]
[1753128219887,0.18713993,3726.9,3726.8,4.402]
[1753128220179,0.1536,3726.9,3726.8,4.402]
[1753128220386,2.83679514,3726.9,3726.8,4.402]
[1753128220914,4.66330343,3726.9,3726.8,4.402]
[1753128221178,4.66330343,3726.9,3726.2,4.399]
[1753128221179,0.8115,3726.8,3726.2,4.399]
[1753128221386,0.1336,3726.3,3726.2,4.399]
[1753128222087,2.81722719,3726.3,3726.2,4.399]
[1753128222288,0.1336,3726.3,3726.2,4.399]
[1753128223080,2.81722719,3726.3,3726.2,4.399]
[1753128223388,2.68415712,3725.6,3725.0,0.4584]
[1753128223611,0.1336,3725.6,3725.2,0.1336]
[1753128224479,0.1336,3725.6,3725.2,0.6836]
[1753128224647,0.1336,3725.6,3725.3,0.4584]
[1753128224845,0.1336,3725.6,3725.3,3.14272154]
[1753128225047,0.1336,3725.6,3725.3,2.68432154]
[1753128225247,0.1336,3725.6,3725.4,0.4584]
[1753128225486,0.1336,3725.6,3725.5,4.389]
[1753128225976,0.1336,3725.6,3725.2,0.1336]
[1753128225977,0.5792,3725.6,3725.2,0.1336]
[1753128226291,0.1336,3725.4,3725.2,4.388]
[1753128226489,2.68434756,3725.3,3725.2,4.388]
[1753128226871,0.86615254,3725.5,3724.4,0.593]
[1753128227199,2.68475282,3724.8,3724.5,4.387]
[1753128227385,2.81835282,3724.8,3724.5,4.387]
[1753128227879,0.1336,3724.8,3724.6,0.4741]
[1753128228483,0.1336,3724.8,3724.4,0.001]
[1753128228671,11.75550637,3724.5,3724.4,0.001]
[1753128228873,13.25751093,3724.5,3724.4,0.001]
[1753128229189,0.8149,3724.5,3724.4,0.001]
[1753128229353,0.1336,3724.6,3724.4,0.001]
[1753128230886,11.42026792,3724.5,3724.4,0.001]
[1753128231119,11.38670637,3724.5,3724.4,0.001]
[1753128231821,14.38670637,3724.5,3724.4,0.001]
[1753128232124,16.10722086,3724.5,3724.4,0.001]
[1753128232326,16.91522086,3724.5,3724.4,0.001]